bitfinex/quotes_BTCUSD_20230904
["timestamp","ask_amount","ask_price","bid_price","bid_amount"]
[1693831267835,1.31259796,25875.0,25874.0,0.002]
[1693831268854,1.31259796,25875.0,25874.0,0.1099]
[1693831271996,0.53965196,25875.0,25874.0,0.1099]
[1693831272434,1.31259796,25875.0,25874.0,0.1099]
[1693831274364,0.53965196,25875.0,25874.0,0.1099]
[1693831275714,1.31259796,25875.0,25874.0,0.1099]
[1693831278038,1.14599796,25875.0,25874.0,0.1099]
[1693831291754,1.28449252,25875.0,25874.0,0.1099]
[1693831293009,1.05353847,25875.0,25874.0,0.1099]
[1693831293226,1.28475357,25875.0,25874.0,0.1099]
[1693831295436,1.19226753,25875.0,25874.0,0.1099]
[1693831299868,1.37723961,25875.0,25874.0,0.1099]
[1693831300256,2.15018561,25875.0,25874.0,0.1099]
[1693831302248,2.01145655,25875.0,25874.0,0.1099]
[1693831302449,2.15026356,25875.0,25874.0,0.1099]
[1693831303075,2.01145655,25875.0,25874.0,0.1099]
[1693831304845,2.43125619,25875.0,25874.0,0.1099]
[1693831313509,2.66247129,25875.0,25874.0,0.1099]
[1693831319060,2.43125619,25875.0,25874.0,0.1099]
[1693831320454,1.65831019,25875.0,25874.0,0.1099]
[1693831325464,0.88536419,25875.0,25874.0,0.1099]
[1693831326227,1.65831019,25875.0,25874.0,0.1099]
[1693831327276,3.81145913,25875.0,25874.0,0.002]
[1693831327408,4.41470015,25875.0,25874.0,0.002]
[1693831327607,4.41470015,25875.0,25869.0,0.0001]
[1693831327608,0.06,25872.0,25869.0,0.0001]
[1693831327809,0.09253302,25870.0,25869.0,0.0001]
[1693831328015,1.79355973,25870.0,25869.0,0.0001]
[1693831328232,2.41182102,25870.0,25869.0,0.0001]
[1693831328748,2.56492102,25870.0,25869.0,0.0001]
[1693831328945,2.9720078,25870.0,25869.0,0.0001]
[1693831329148,2.9950078,25870.0,25869.0,0.0011]
[1693831329689,3.0190078,25870.0,25869.0,0.0011]
[1693831330085,3.23815859,25870.0,25869.0,0.0011]
[1693831330439,3.21515859,25870.0,25869.0,0.0001]
[1693831330626,3.21515859,25870.0,25869.0,0.0011]
[1693831330627,3.12262557,25870.0,25869.0,0.0011]
[1693831330826,2.92747478,25870.0,25869.0,0.0011]
[1693831331026,2.90347478,25870.0,25869.0,0.0011]
[1693831331268,3.18985038,25870.0,25869.0,0.0011]
[1693831331470,2.92747478,25870.0,25869.0,0.0011]
[1693831332295,2.98747478,25870.0,25869.0,0.0011]
[1693831334516,3.28747478,25870.0,25869.0,0.0011]
[1693831341155,3.5625478,25870.0,25869.0,0.0011]
[1693831341362,3.5612278,25870.0,25869.0,0.0011]
[1693831341568,3.5659078,25870.0,25869.0,0.0011]
[1693831341769,3.5648878,25870.0,25869.0,0.0011]
[1693831341944,3.4879078,25870.0,25869.0,0.0011]
[1693831342355,3.5612878,25870.0,25869.0,0.0011]
[1693831342571,3.5594278,25870.0,25869.0,0.0011]
[1693831342845,3.5672278,25870.0,25869.0,0.0011]
[1693831343150,3.5669278,25870.0,25869.0,0.0011]
[1693831343357,3.5667478,25870.0,25869.0,0.0011]
[1693831343590,3.5427478,25870.0,25869.0,0.0011]
[1693831343738,3.5684878,25870.0,25869.0,0.0011]
[1693831343943,3.5681278,25870.0,25869.0,0.0011]
[1693831344125,3.5385478,25870.0,25869.0,0.0001]
[1693831344344,3.5156278,25870.0,25869.0,0.0001]
[1693831344707,3.5371678,25870.0,25869.0,0.0001]
[1693831344907,3.5635678,25870.0,25869.0,0.0001]
[1693831345035,3.5626678,25870.0,25869.0,0.0001]
[1693831345241,3.5410078,25870.0,25869.0,0.0001]
[1693831345626,3.5648878,25870.0,25869.0,0.0001]
[1693831345847,3.5647078,25870.0,25869.0,0.0001]
[1693831346056,3.5648878,25870.0,25869.0,0.0001]
[1693831346261,3.5643478,25870.0,25869.0,0.0001]
[1693831346467,3.47271478,25870.0,25869.0,0.0001]
[1693831346685,3.47181478,25870.0,25869.0,0.0001]
[1693831346987,3.47115478,25870.0,25869.0,0.0001]
[1693831347172,3.47007478,25870.0,25869.0,0.0001]
[1693831347390,3.47037478,25870.0,25869.0,0.0001]
[1693831347646,3.56189478,25870.0,25869.0,0.0001]
[1693831347848,3.6565278,25870.0,25869.0,0.0001]
[1693831348057,3.6564678,25870.0,25869.0,0.0001]
[1693831348261,3.6552078,25870.0,25869.0,0.0001]
[1693831348655,3.6555078,25870.0,25869.0,0.0001]
[1693831348780,3.6565878,25870.0,25869.0,0.0001]
[1693831348981,3.6553278,25870.0,25869.0,0.0001]
[1693831349201,3.6552078,25870.0,25869.0,0.0001]
[1693831349421,3.6576078,25870.0,25869.0,0.0001]
[1693831349621,3.6557478,25870.0,25869.0,0.0001]
[1693831349988,3.6568878,25870.0,25869.0,0.0001]
[1693831350197,3.6570678,25870.0,25869.0,0.0001]
[1693831350397,3.6567078,25870.0,25869.0,0.0001]
[1693831350598,3.6600678,25870.0,25869.0,0.0001]
[1693831350776,3.6551478,25870.0,25869.0,0.0001]
[1693831350999,3.6545478,25870.0,25869.0,0.0001]
[1693831351275,4.20146151,25870.0,25869.0,0.0001]
[1693831351497,3.93396037,25870.0,25869.0,0.0001]
[1693831351610,3.82395756,25870.0,25869.0,0.0001]
[1693831351814,3.80265756,25870.0,25869.0,0.0001]
[1693831352009,3.94122223,25870.0,25869.0,0.0001]
[1693831352247,3.80289756,25870.0,25869.0,0.0001]
[1693831352420,3.80349756,25870.0,25869.0,0.0001]
[1693831352615,3.94235235,25870.0,25869.0,0.0001]
[1693831352816,3.94241235,25870.0,25869.0,0.0001]
[1693831353086,3.94337235,25870.0,25869.0,0.0001]
[1693831353290,3.94349235,25870.0,25869.0,0.0001]
[1693831353414,3.94499235,25870.0,25869.0,0.0001]
[1693831353617,3.94661235,25870.0,25869.0,0.0001]
[1693831353881,3.94499235,25870.0,25869.0,0.0001]
[1693831354209,6.0312512,25870.0,25869.0,0.0001]
[1693831354459,11.0181112,25870.0,25869.0,0.0001]
[1693831354669,11.0184712,25870.0,25869.0,0.0001]
[1693831354847,11.0178112,25870.0,25869.0,0.0001]
[1693831355053,11.0176312,25870.0,25869.0,0.0001]
[1693831355201,0.06,25864.0,25858.0,0.12779699]
[1693831355413,0.02,25860.0,25859.0,0.2698]
[1693831355611,1.23540339,25860.0,25859.0,0.2698]
[1693831355935,2.30879839,25860.0,25859.0,0.2698]
[1693831356138,2.15396368,25860.0,25859.0,0.2698]
[1693831356340,2.15396368,25860.0,25859.0,0.2987697]
[1693831357237,2.17796368,25860.0,25859.0,0.2698]
[1693831357587,2.95135868,25860.0,25859.0,0.2698]
[1693831357944,2.97535868,25860.0,25859.0,0.2698]
[1693831360038,2.95535868,25860.0,25859.0,0.2698]
[1693831360260,2.97535868,25860.0,25859.0,0.2698]
[1693831379536,3.36244546,25860.0,25859.0,0.2698]
[1693831381285,3.13527178,25860.0,25858.0,0.01989699]
[1693831381510,0.85498678,25859.0,25858.0,0.01989699]
[1693831381726,3.19526178,25859.0,25858.0,0.01989699]
[1693831381944,3.30080178,25859.0,25858.0,0.01989699]
[1693831382153,3.29114178,25859.0,25858.0,0.01989699]
[1693831382363,3.28736178,25859.0,25858.0,0.01989699]
[1693831382574,3.28706178,25859.0,25858.0,0.01989699]
[1693831382778,3.31094178,25859.0,25858.0,0.01989699]
[1693831382986,3.30854178,25859.0,25858.0,0.01989699]
[1693831383196,3.30350178,25859.0,25858.0,0.01989699]
[1693831383416,3.62168969,25859.0,25858.0,0.01989699]
[1693831383631,3.42972969,25859.0,25858.0,0.01989699]
[1693831384485,3.40572969,25859.0,25858.0,0.01989699]
[1693831384694,3.42972969,25859.0,25858.0,0.01989699]
[1693831385603,3.40572969,25859.0,25858.0,0.01989699]
[1693831385804,3.42972969,25859.0,25858.0,0.01989699]
[1693831387253,3.40572969,25859.0,25858.0,0.01989699]
[1693831387788,3.42972969,25859.0,25858.0,0.01989699]
[1693831396564,3.52189818,25859.0,25858.0,0.01989699]
[1693831402139,3.22753027,25859.0,25858.0,0.01989699]
[1693831402346,3.46040075,25859.0,25858.0,0.01989699]
[1693831402523,3.22753027,25859.0,25858.0,0.01989699]
[1693831402948,3.45289655,25859.0,25858.0,0.01989699]
[1693831404233,3.59114929,25859.0,25858.0,0.01989699]
[1693831404432,3.36578301,25859.0,25858.0,0.01989699]
[1693831404633,3.6279224,25859.0,25858.0,0.01989699]
[1693831405654,3.53575391,25859.0,25858.0,0.01989699]
[1693831406826,3.62815527,25859.0,25858.0,0.01989699]
[1693831409610,3.48990253,25859.0,25858.0,0.01989699]
[1693831409857,3.62815527,25859.0,25858.0,0.01989699]
[1693831410595,3.48990253,25859.0,25858.0,0.01989699]
[1693831411964,3.62815527,25859.0,25858.0,0.01989699]
[1693831412567,3.48990253,25859.0,25858.0,0.01989699]
[1693831413797,3.10281575,25859.0,25858.0,0.01989699]
[1693831415633,3.24106849,25859.0,25858.0,0.01989699]
[1693831416256,3.14866713,25859.0,25858.0,0.01989699]
[1693831419103,3.33300412,25859.0,25858.0,0.01989699]
[1693831422632,3.19539588,25859.0,25858.0,0.01989699]
[1693831422832,3.32034327,25859.0,25858.0,0.01989699]
[1693831423083,4.05720982,25859.0,25858.0,0.01989699]
[1693831424511,4.28843668,25859.0,25858.0,0.01989699]
[1693831425371,4.27796831,25859.0,25858.0,0.01989699]
[1693831425553,4.09298682,25859.0,25858.0,0.01989699]
[1693831434168,3.71679423,25859.0,25858.0,0.01989699]
[1693831434378,4.00302647,25859.0,25858.0,0.01989699]
[1693831434598,3.72405423,25859.0,25858.0,0.01989699]
[1693831434829,4.72357423,25859.0,25858.0,0.01989699]
[1693831434974,4.72255423,25859.0,25858.0,0.01989699]
[1693831435170,4.72291423,25859.0,25858.0,0.01989699]
[1693831435379,4.72123423,25859.0,25858.0,0.01989699]
[1693831435604,4.70881423,25859.0,25858.0,0.01989699]
[1693831435803,4.70941423,25859.0,25858.0,0.01989699]
[1693831436011,4.70977423,25859.0,25858.0,0.01989699]
[1693831436174,4.70995423,25859.0,25858.0,0.01989699]
[1693831436377,4.70941423,25859.0,25858.0,0.01989699]
[1693831436620,4.70989423,25859.0,25858.0,0.01989699]
[1693831436824,4.71043423,25859.0,25858.0,0.01989699]
[1693831437029,4.71067423,25859.0,25858.0,0.01989699]
[1693831437226,4.71037423,25859.0,25858.0,0.01989699]
[1693831437428,4.70983423,25859.0,25858.0,0.01989699]
[1693831437603,4.71073423,25859.0,25858.0,0.01989699]
[1693831437780,4.71271423,25859.0,25858.0,0.01989699]
[1693831438017,4.71247423,25859.0,25858.0,0.01989699]
[1693831438214,4.71373423,25859.0,25858.0,0.01989699]
[1693831438410,4.71157423,25859.0,25858.0,0.01989699]
[1693831438732,4.71145423,25859.0,25858.0,0.01989699]
[1693831438936,4.71024401,25859.0,25858.0,0.01989699]
[1693831439139,4.70982401,25859.0,25858.0,0.01989699]
[1693831439344,4.92669076,25859.0,25858.0,0.01989699]
[1693831439549,4.92585076,25859.0,25858.0,0.01989699]
[1693831439834,4.92495076,25859.0,25858.0,0.01989699]
[1693831440039,4.92483076,25859.0,25858.0,0.01989699]
[1693831440288,4.70424401,25859.0,25858.0,0.01989699]
[1693831440483,4.70496401,25859.0,25858.0,0.01989699]
[1693831440728,4.74933949,25859.0,25858.0,0.01989699]
[1693831440944,3.98058619,25859.0,25858.0,0.01989699]
[1693831442269,4.00058619,25859.0,25858.0,0.01989699]
[1693831448693,4.19058619,25859.0,25858.0,0.01989699]
[1693831449500,4.29848619,25859.0,25858.0,0.01989699]
[1693831453381,0.37676231,25859.0,25858.0,0.39403629]
[1693831453591,0.33051214,25859.0,25858.0,0.52834992]
[1693831453804,0.238,25859.0,25858.0,0.37414921]
[1693831454211,0.09251214,25861.0,25860.0,0.02]
[1693831454427,0.13876231,25862.0,25860.0,0.1279]
[1693831454428,0.23127445,25862.0,25860.0,0.1279]
[1693831454634,0.23127445,25862.0,25861.0,0.1079]
[1693831454845,0.23127445,25862.0,25861.0,0.16193245]
[1693831454846,0.09251214,25862.0,25861.0,0.16193245]
[1693831455857,0.28251214,25862.0,25861.0,0.16193245]
[1693831456055,0.19,25862.0,25861.0,0.16193245]
[1693831456669,0.214,25862.0,25861.0,0.16393245]
[1693831457077,0.19,25862.0,25861.0,0.14989386]
[1693831457231,0.024,25862.0,25861.0,0.16393245]
[1693831457450,0.09251214,25863.0,25861.0,0.16193245]
[1693831457638,0.09251214,25863.0,25862.0,0.15786325]
[1693831459647,0.11651214,25863.0,25862.0,0.15786325]
[1693831459854,0.048,25863.0,25862.0,0.15986325]
[1693831460052,0.024,25863.0,25862.0,0.15986325]
[1693831460507,0.048,25863.0,25862.0,0.16186325]
[1693831462232,1.15805425,25863.0,25862.0,0.05396325]
[1693831463365,1.93135925,25863.0,25862.0,0.05396325]
[1693831463613,1.83884711,25863.0,25862.0,0.05396325]
[1693831466587,1.84884711,25863.0,25862.0,0.05396325]
[1693831466973,1.07554211,25863.0,25862.0,0.05396325]
[1693831468833,1.84884711,25863.0,25862.0,0.05396325]
[1693831471921,1.07554211,25863.0,25862.0,0.05396325]
[1693831473666,0.30223711,25863.0,25862.0,0.05396325]
[1693831477531,1.07554211,25863.0,25862.0,0.05396325]
[1693831480074,0.30223711,25863.0,25862.0,0.05396325]
[1693831480275,0.058,25863.0,25862.0,0.16186325]
[1693831481320,0.058,25863.0,25862.0,0.05396325]
[1693831485004,0.058,25863.0,25862.0,0.18186325]
[1693831485244,0.058,25863.0,25862.0,0.27390184]
[1693831485975,0.034,25863.0,25862.0,0.27190184]
[1693831486490,0.058,25863.0,25862.0,0.27390184]
[1693831486742,0.034,25863.0,25862.0,0.27190184]
[1693831486986,0.058,25863.0,25862.0,0.27390184]
[1693831487228,0.034,25863.0,25862.0,0.27190184]
[1693831487887,0.01,25863.0,25862.0,0.18990184]
[1693831488294,0.032,25863.0,25862.0,0.19190184]
[1693831488699,0.051,25863.0,25862.0,0.19390184]
[1693831490387,0.30484897,25863.0,25862.0,0.19390184]
[1693831494493,0.051,25863.0,25862.0,0.19390184]
[1693831503102,0.29656319,25863.0,25862.0,0.19390184]
[1693831505546,0.051,25863.0,25862.0,0.19390184]
[1693831510809,0.33426027,25863.0,25862.0,0.19390184]
[1693831515460,0.051,25863.0,25862.0,0.19390184]
[1693831517510,0.34566049,25863.0,25862.0,0.19390184]
[1693831517716,0.43820149,25863.0,25862.0,0.19390184]
[1693831520978,1.21150649,25863.0,25862.0,0.19390184]
[1693831521193,0.43820149,25863.0,25862.0,0.19390184]
[1693831524705,0.577013,25863.0,25862.0,0.19390184]
[1693831526060,0.567013,25863.0,25862.0,0.19390184]
[1693831526616,0.567013,25863.0,25862.0,0.17390184]
[1693831527623,0.474472,25863.0,25862.0,0.17390184]
[1693831532663,0.484472,25863.0,25862.0,0.17390184]
[1693831536455,0.484472,25863.0,25862.0,0.06600184]
[1693831537303,0.66955401,25863.0,25862.0,0.06600184]
[1693831537503,1.3040475,25863.0,25862.0,0.06600184]
[1693831537895,2.0773525,25863.0,25862.0,0.06600184]
[1693831538593,2.0773525,25863.0,25862.0,0.05396325]
[1693831538780,2.0773525,25863.0,25862.0,0.06600184]
[1693831539207,2.21627778,25863.0,25862.0,0.06600184]
[1693831540613,2.69492229,25863.0,25862.0,0.05396325]
[1693831540823,3.24000161,25863.0,25862.0,0.05396325]
[1693831542392,3.47135412,25863.0,25862.0,0.05396325]
[1693831547947,3.24000161,25863.0,25862.0,0.05396325]
[1693831548280,3.47135412,25863.0,25862.0,0.05396325]
[1693831548702,3.24000161,25863.0,25862.0,0.05396325]
[1693831551667,3.23500161,25863.0,25862.0,0.05396325]
[1693831562123,3.23500161,25863.0,25862.0,0.04896325]
[1693831563591,3.23500161,25863.0,25862.0,0.004]
[1693831566909,3.46635412,25863.0,25862.0,0.004]
[1693831567158,3.28127211,25863.0,25862.0,0.004]
[1693831571207,2.98708149,25863.0,25862.0,0.004]
[1693831571413,4.47382217,25863.0,25862.0,0.004]
[1693831571640,4.48600217,25863.0,25862.0,0.004]
[1693831571886,4.94848105,25863.0,25862.0,0.004]
[1693831572075,5.15886599,25863.0,25862.0,0.004]
[1693831572290,5.26234599,25863.0,25862.0,0.004]
[1693831572487,5.26234599,25863.0,25862.0,0.002]
[1693831572488,8.29716516,25863.0,25862.0,0.002]
[1693831572717,9.86802516,25863.0,25862.0,0.002]
[1693831572921,9.89172516,25863.0,25862.0,0.003]
[1693831573122,9.89280516,25863.0,25862.0,0.003]
[1693831573329,9.89280516,25863.0,25862.0,0.001]
[1693831573330,9.87868516,25863.0,25862.0,0.001]
[1693831573474,9.88090516,25863.0,25862.0,0.001]
[1693831573688,10.04114516,25863.0,25862.0,0.001]
[1693831573938,10.06352516,25863.0,25862.0,0.002]
[1693831574138,10.03940516,25863.0,25862.0,0.001]
[1693831574271,0.04796141,25859.0,25858.0,0.01989699]
[1693831574519,3.96575156,25859.0,25858.0,0.01989699]
[1693831574731,4.35556554,25859.0,25858.0,0.01989699]
[1693831574930,4.74265232,25859.0,25858.0,0.01989699]
[1693831575135,4.53143557,25859.0,25858.0,0.01989699]
[1693831575538,4.55543557,25859.0,25858.0,0.02089699]
[1693831576924,4.64813557,25859.0,25858.0,0.02189699]
[1693831577248,4.65179557,25859.0,25858.0,0.02189699]
[1693831577450,4.65233557,25859.0,25858.0,0.02189699]
[1693831577635,4.65173557,25859.0,25858.0,0.02189699]
[1693831577838,4.65119557,25859.0,25858.0,0.02189699]
[1693831578018,4.64819557,25859.0,25858.0,0.02189699]
[1693831578191,4.64453557,25859.0,25858.0,0.02189699]
[1693831578395,4.65113557,25859.0,25858.0,0.02189699]
[1693831578604,4.65401557,25859.0,25858.0,0.02189699]
[1693831578808,4.65467557,25859.0,25858.0,0.02189699]
[1693831579149,4.26522159,25859.0,25858.0,0.02189699]
[1693831579354,4.26240159,25859.0,25858.0,0.02189699]
[1693831579575,4.26258159,25859.0,25858.0,0.02189699]
[1693831579758,4.26168159,25859.0,25858.0,0.02189699]
[1693831579955,4.26276159,25859.0,25858.0,0.02189699]
[1693831580250,4.40100096,25859.0,25858.0,0.02189699]
[1693831580487,4.40034096,25859.0,25858.0,0.02189699]
[1693831580674,4.40466096,25859.0,25858.0,0.02189699]
[1693831581059,4.25898159,25859.0,25858.0,0.02189699]
[1693831581268,4.39714808,25859.0,25858.0,0.02189699]
[1693831581482,4.39702808,25859.0,25858.0,0.02189699]
[1693831581682,4.39828808,25859.0,25858.0,0.02089699]
[1693831581888,4.35016808,25859.0,25858.0,0.01989699]
[1693831582102,4.35004808,25859.0,25858.0,0.01989699]
[1693831582311,4.37386808,25859.0,25858.0,0.01989699]
[1693831582460,4.37380808,25859.0,25858.0,0.01989699]
[1693831582675,4.37440808,25859.0,25858.0,0.01989699]
[1693831582889,4.37446808,25859.0,25858.0,0.01989699]
[1693831583058,4.29134808,25859.0,25858.0,0.01989699]
[1693831583265,4.29068808,25859.0,25858.0,0.01989699]
[1693831583466,4.29056808,25859.0,25858.0,0.01989699]
[1693831583736,4.26662808,25859.0,25858.0,0.01989699]
[1693831583893,4.29050808,25859.0,25858.0,0.01989699]
[1693831584069,4.29020808,25859.0,25858.0,0.01989699]
[1693831584275,4.29014808,25859.0,25858.0,0.01989699]
[1693831584474,4.29056808,25859.0,25858.0,0.01989699]
[1693831584671,4.29008808,25859.0,25858.0,0.01989699]
[1693831584886,4.28996808,25859.0,25858.0,0.01989699]
[1693831585071,4.29332808,25859.0,25858.0,0.01989699]
[1693831585315,4.29440808,25859.0,25858.0,0.01989699]
[1693831585520,4.29518808,25859.0,25858.0,0.01989699]
[1693831585719,4.29950808,25859.0,25858.0,0.01989699]
[1693831585937,4.29884808,25859.0,25858.0,0.01989699]
[1693831586099,4.29917508,25859.0,25858.0,0.01989699]
[1693831586284,4.29731508,25859.0,25858.0,0.01989699]
[1693831586490,4.29677508,25859.0,25858.0,0.01989699]
[1693831586687,4.29683508,25859.0,25858.0,0.01989699]
[1693831586909,4.29677508,25859.0,25858.0,0.01989699]
[1693831587125,4.29755508,25859.0,25858.0,0.01989699]
[1693831587343,4.29779508,25859.0,25858.0,0.01989699]
[1693831587531,4.29545508,25859.0,25858.0,0.01989699]
[1693831587732,4.29509508,25859.0,25858.0,0.01989699]
[1693831587955,4.29521508,25859.0,25858.0,0.01989699]
[1693831588334,4.29509508,25859.0,25858.0,0.01989699]
[1693831588534,4.29539508,25859.0,25858.0,0.01989699]
[1693831588738,4.29485508,25859.0,25858.0,0.01989699]
[1693831588938,4.29461508,25859.0,25858.0,0.01989699]
[1693831589136,4.29935508,25859.0,25858.0,0.01989699]
[1693831589290,4.17088159,25859.0,25858.0,0.01989699]
[1693831589492,4.17082159,25859.0,25858.0,0.01989699]
[1693831589711,4.30821393,25859.0,25858.0,0.01989699]
[1693831589918,4.30767393,25859.0,25858.0,0.01989699]
[1693831590121,4.31295393,25859.0,25858.0,0.01989699]
[1693831590356,4.31012916,25859.0,25858.0,0.01989699]
[1693831590564,4.17514159,25859.0,25858.0,0.01989699]
[1693831590777,3.14189741,25857.0,25856.0,0.549689]
[1693831590965,3.84898419,25857.0,25856.0,0.549689]
[1693831591519,4.11741709,25857.0,25856.0,0.549689]
[1693831592331,4.14141709,25857.0,25856.0,0.549689]
[1693831592917,4.16541709,25857.0,25856.0,0.549689]
[1693831599803,4.17541709,25857.0,25856.0,0.549689]
[1693831600467,3.90698419,25857.0,25856.0,0.549689]
[1693831600877,4.01488419,25857.0,25856.0,0.549689]
[1693831601694,4.31111626,25857.0,25856.0,0.549689]
[1693831602056,4.10723457,25857.0,25856.0,0.549689]
[1693831602277,4.17911457,25857.0,25856.0,0.549689]
[1693831602475,4.17875457,25857.0,25856.0,0.549689]
[1693831602704,4.17677457,25857.0,25856.0,0.549689]
[1693831602907,4.17605457,25857.0,25856.0,0.549689]
[1693831603081,4.08323457,25857.0,25856.0,0.549689]
[1693831603282,4.10723457,25857.0,25856.0,0.549689]
[1693831603659,4.24576015,25857.0,25856.0,0.549689]
[1693831603864,4.22176015,25857.0,25856.0,0.549689]
[1693831604466,4.24576015,25857.0,25856.0,0.549689]
[1693831604842,4.22176015,25857.0,25856.0,0.549689]
[1693831605043,4.24576015,25857.0,25856.0,0.549689]
[1693831606593,4.31254015,25857.0,25856.0,0.549689]
[1693831606785,4.31236015,25857.0,25856.0,0.549689]
[1693831606986,4.31230015,25857.0,25856.0,0.549689]
[1693831607210,4.22036977,25857.0,25856.0,0.549689]
[1693831607432,4.21874977,25857.0,25856.0,0.549689]
[1693831607607,4.21066836,25857.0,25856.0,0.549689]
[1693831607811,4.30288257,25857.0,25856.0,0.549689]
[1693831608016,4.23784257,25857.0,25856.0,0.549689]
[1693831608240,4.14544836,25857.0,25856.0,0.549689]
[1693831608447,4.21258836,25857.0,25856.0,0.549689]
[1693831608628,4.21330836,25857.0,25856.0,0.549689]
[1693831608845,4.21300836,25857.0,25856.0,0.549689]
[1693831609015,4.21114836,25857.0,25856.0,0.549689]
[1693831609213,4.21978836,25857.0,25856.0,0.549689]
[1693831609421,4.21966836,25857.0,25856.0,0.549689]
[1693831609624,4.21846836,25857.0,25856.0,0.549689]
[1693831609824,4.21924836,25857.0,25856.0,0.16274034]
[1693831610065,4.21480836,25857.0,25856.0,0.16274034]
[1693831610235,4.21924836,25857.0,25856.0,0.16274034]
[1693831610443,4.21888836,25857.0,25856.0,0.16274034]
[1693831610621,4.21774836,25857.0,25856.0,0.16274034]
[1693831610825,4.21846836,25857.0,25856.0,0.16274034]
[1693831611148,4.21180836,25857.0,25856.0,0.16274034]
[1693831611264,4.40146176,25857.0,25856.0,0.16274034]
[1693831611461,4.39804176,25857.0,25856.0,0.16274034]
[1693831611695,4.40194176,25857.0,25856.0,0.16274034]
[1693831611870,4.26245618,25857.0,25856.0,0.16274034]
[1693831612075,4.25849618,25857.0,25856.0,0.16274034]
[1693831612275,4.64463864,25857.0,25854.0,0.04923574]
[1693831612550,0.6382207,25856.0,25854.0,0.07595257]
[1693831612751,3.094176,25855.0,25854.0,0.07595257]
[1693831612972,3.50126278,25855.0,25854.0,0.07595257]
[1693831613177,3.59371635,25855.0,25854.0,0.02671683]
[1693831613736,3.59371635,25855.0,25853.0,0.03193558]
[1693831614099,0.02,25854.0,25853.0,0.03193558]
[1693831614309,2.340722,25854.0,25853.0,0.03193558]
[1693831614660,2.340722,25854.0,25851.0,0.01756209]
[1693831614867,2.340722,25854.0,25851.0,0.12546209]
[1693831615046,2.340722,25854.0,25851.0,0.1079]
[1693831615699,0.29277957,25853.0,25851.0,0.1079]
[1693831615900,0.773634,25852.0,25851.0,0.1079]
[1693831616107,0.773634,25852.0,25851.0,0.1486497]
[1693831617570,1.547268,25852.0,25851.0,0.1486497]
[1693831618532,1.548268,25852.0,25851.0,0.1486497]
[1693831618730,1.549268,25852.0,25851.0,0.1486497]
[1693831619157,1.82382183,25852.0,25851.0,0.1486497]
[1693831620891,1.82382183,25852.0,25851.0,0.1079]
[1693831622971,1.82382183,25852.0,25850.0,0.12789699]
[1693831623946,1.82282183,25852.0,25850.0,0.12789699]
[1693831624362,1.82382183,25852.0,25850.0,0.12789699]
[1693831624565,1.82482183,25852.0,25850.0,0.12789699]
[1693831624769,1.82482183,25852.0,25850.0,0.17716639]
[1693831625207,0.29735796,25851.0,25850.0,0.17716639]
[1693831625404,0.29735796,25851.0,25850.0,0.17416639]
[1693831627393,0.29935796,25851.0,25850.0,0.17416639]
[1693831627989,0.30035796,25851.0,25850.0,0.17416639]
[1693831629049,1.07402196,25851.0,25850.0,0.17416639]
[1693831629430,1.07402196,25851.0,25850.0,0.12489699]
[1693831630243,1.08402196,25851.0,25850.0,0.12489699]
[1693831631066,1.85768596,25851.0,25850.0,0.12489699]
[1693831633341,2.333992,25851.0,25850.0,0.01699699]
[1693831633939,2.60177238,25851.0,25850.0,0.01699699]
[1693831634160,2.59977238,25851.0,25850.0,0.01699699]
[1693831634320,2.60177238,25851.0,25850.0,0.01699699]
[1693831634528,2.60077238,25851.0,25850.0,0.01699699]
[1693831634747,2.59877238,25851.0,25850.0,0.01699699]
[1693831634959,2.60577238,25851.0,25850.0,0.01699699]
[1693831635384,2.6279219,25851.0,25850.0,0.01699699]
[1693831635753,2.6359219,25851.0,25850.0,0.01699699]
[1693831636174,2.344992,25851.0,25850.0,0.01699699]
[1693831636396,2.56065018,25851.0,25850.0,0.01699699]
[1693831638627,3.118656,25851.0,25850.0,0.01699699]
[1693831638830,3.40405171,25851.0,25850.0,0.01699699]
[1693831640046,3.118656,25851.0,25850.0,0.01699699]
[1693831640249,3.112656,25851.0,25850.0,0.01699699]
[1693831640666,3.119656,25851.0,25850.0,0.01699699]
[1693831641077,3.127656,25851.0,25850.0,0.0001]
[1693831641285,3.127656,25851.0,25845.0,0.0075]
[1693831641495,0.1079,25846.0,25845.0,0.0075]
[1693831641728,1.48363549,25846.0,25845.0,0.0075]
[1693831641907,1.78363549,25846.0,25845.0,0.0075]
[1693831642108,1.62880078,25846.0,25845.0,0.0075]
[1693831642316,3.95024278,25846.0,25845.0,0.0075]
[1693831642777,3.84234278,25846.0,25845.0,0.0075]
[1693831642994,3.455256,25846.0,25845.0,0.0075]
[1693831643197,2.89968843,25846.0,25845.0,0.0075]
[1693831643425,0.001,25846.0,25845.0,0.1154]
[1693831643629,0.025,25846.0,25845.0,0.1154]
[1693831643844,0.001,25846.0,25845.0,0.52601648]
[1693831644271,0.024,25846.0,25845.0,0.52601648]
[1693831644480,0.773725,25849.0,25845.0,0.1389297]
[1693831644686,0.025,25846.0,25845.0,0.18523041]
[1693831644894,0.025,25846.0,25845.0,0.1389297]
[1693831645098,1.54745,25849.0,25845.0,0.1389297]
[1693831645299,1.54745,25849.0,25848.0,0.1079]
[1693831645701,1.81233289,25849.0,25848.0,0.1079]
[1693831646133,1.81233289,25849.0,25847.0,0.1079]
[1693831646341,2.322192,25849.0,25846.0,0.13179297]
[1693831646545,2.473292,25849.0,25846.0,0.1079]
[1693831646932,2.68457078,25849.0,25846.0,0.13464]
[1693831647168,2.54847078,25849.0,25846.0,0.13464]
[1693831647369,2.53347078,25849.0,25848.0,0.1079]
[1693831647568,2.53247078,25849.0,25848.0,0.1079]
[1693831647747,2.55047078,25849.0,25848.0,0.1079]
[1693831647956,2.54947078,25849.0,25848.0,0.1079]
[1693831648131,2.55547078,25849.0,25848.0,0.1079]
[1693831649099,2.344192,25849.0,25846.0,0.02674]
[1693831649277,2.344192,25849.0,25847.0,0.1079]
[1693831649470,2.72527878,25849.0,25846.0,0.02674]
[1693831649671,2.95185518,25849.0,25845.0,0.0075]
[1693831649871,2.5797684,25849.0,25847.0,0.1079]
[1693831650025,2.5647684,25849.0,25847.0,0.1079]
[1693831650468,2.327192,25849.0,25847.0,0.1079]
[1693831650678,3.38307472,25849.0,25847.0,0.1079]
[1693831650878,3.37807472,25849.0,25847.0,0.1079]
[1693831651078,3.119934,25849.0,25847.0,0.1079]
[1693831651291,0.29830012,25848.0,25847.0,0.1079]
[1693831651458,0.22824744,25848.0,25845.0,0.1154]
[1693831651661,3.118934,25849.0,25845.0,0.1567897]